fUST/lending_fUST_20250916
["ID","MTS","AMOUNT","RATE_DAILY","PERIOD"]
[385657511,1757952381087,155.0,0.00027397,120]
[385657513,1757952553159,-5000.0,0.00021053,2]
[385657514,1757952553179,-254.16180757,0.000211,2]
[385657515,1757952553216,-5000.0,0.00021266,2]
[385657516,1757952553237,-300.0,0.00021695,2]
[385657517,1757952553260,-1113.56961096,0.00021697,2]
[385657518,1757952554748,800.0,0.0002739,120]
[385657519,1757952563457,800.0,0.0002739,120]
[385657520,1757952609579,-5000.0,0.00021265,2]
[385657521,1757952625582,200.0,0.0002739,120]
[385657594,1757952632870,-3778.54638207,0.00021264,2]
[385657596,1757952632879,-1200.0,0.00021479,2]
[385657598,1757952632889,-5000.0,0.0002148,2]
[385657600,1757952632898,-300.0,0.00021696,2]
[385657602,1757952632907,-300.0,0.00021696,2]
[385657604,1757952632916,-300.0,0.00021696,2]
[385657606,1757952632925,-300.0,0.00021696,2]
[385657608,1757952632934,-253.857916,0.00022025,2]
[385657610,1757952632943,-594.01024957,0.00022348,2]
[385657612,1757952632953,-500.0,0.00022362,2]
[385657614,1757952632962,-500.0,0.00022362,2]
[385657616,1757952632972,-500.0,0.00022362,2]
[385657618,1757952632983,-500.0,0.00022362,2]
[385657620,1757952632993,-500.0,0.00022362,2]
[385657622,1757952633002,-500.0,0.00022362,2]
[385657624,1757952633011,-500.0,0.00022362,2]
[385657626,1757952633022,-500.0,0.00022362,2]
[385657628,1757952633031,-500.0,0.00022362,2]
[385657630,1757952633041,-500.0,0.00022362,2]
[385657632,1757952633051,-500.0,0.00022362,2]
[385657634,1757952633060,-471.30244502,0.00022362,2]
[385657636,1757952633070,-583.90521809,0.00022447,2]
[385657638,1757952633079,-500.0,0.00022447,2]
[385657640,1757952633089,-500.0,0.00022447,2]
[385657642,1757952633098,-546.44330873,0.00022447,2]
[385657644,1757952633109,-386.88353958,0.00022448,2]
[385657646,1757952633118,-1547.53415834,0.00022448,2]
[385657648,1757952633127,-2011.33105157,0.00022448,2]
[385657650,1757952633139,-274.31180953,0.00022448,2]
[385657886,1757952638570,-724.88990049,0.00022448,2]
[385657887,1757952638582,-471.41909467,0.00022448,2]
[385657889,1757952638591,-28.58090533,0.00022448,2]
[385657891,1757952638603,-4425.99718251,0.00022448,2]
[385657893,1757952638615,-500.4380789,0.00022448,2]
[385657895,1757952638627,-1228.93032998,0.00022448,2]
[385657897,1757952638636,-570.31762238,0.00022448,2]
[385657898,1757952638645,-200.75204764,0.00022448,2]
[385657899,1757952638655,-2078.23717141,0.00022448,2]
[385657900,1757952638664,-517.14396974,0.000226,2]
[385657901,1757952638674,-300.0,0.00022808,20]
[385657902,1757952638683,-300.0,0.00022808,20]
[385657903,1757952638692,-300.0,0.00022808,20]
[385657904,1757952638701,-300.0,0.00022808,20]
[385657906,1757952638711,-300.0,0.00022808,20]
[385657907,1757952638720,-300.0,0.00022808,20]
[385657908,1757952638729,-300.0,0.00022808,20]
[385657909,1757952638738,-300.0,0.00022808,20]
[385657910,1757952638747,-300.0,0.00022808,20]
[385657911,1757952638757,-300.0,0.00022808,20]
[385657912,1757952638766,-300.0,0.00022808,20]
[385657913,1757952638775,-300.0,0.00022808,20]
[385657914,1757952638785,-300.0,0.00022808,20]
[385657915,1757952638794,-300.0,0.00022808,20]
[385657916,1757952638803,-300.0,0.00022808,20]
[385657917,1757952638813,-600.0,0.00022808,20]
[385657918,1757952638822,-712.71228484,0.00022816,2]
[385657919,1757952638831,-160.0,0.000229,2]
[385657920,1757952638840,-222.0,0.00022999,2]
[385657921,1757952638851,-300.0,0.00023,2]
[385657922,1757952638860,-179.4901113,0.0002326,2]
[385657923,1757952638869,-356.35614242,0.00023277,2]
[385657924,1757952638878,-260.0,0.00023448,2]
[385657925,1757952638888,-594.01024956,0.00023454,2]
[385657926,1757952638897,-1680.0,0.00023463,2]
[385657927,1757952638906,-1016.0,0.00023569,2]
[385657928,1757952638915,-420.0,0.00023584,2]
[385657929,1757952638925,-420.0,0.00023584,2]
[385657930,1757952638934,-324.0,0.00023584,2]
[385657931,1757952638943,-166.5957614,0.00023615,2]
[385657932,1757952638952,-500.0,0.00023665,2]
[385657933,1757952638962,-500.0,0.00023665,2]
[385657934,1757952638971,-178.98284859,0.00023665,2]
[385657935,1757952638981,-472.0,0.00023762,2]
[385657936,1757952638990,-10592.81255375,0.00023946,2]
[385657937,1757952639000,-360.0,0.00023996,2]
[385657938,1757952639009,-3000.0,0.00024,2]
[385657939,1757952639018,-3000.0,0.0002401,2]
[385657940,1757952639027,-3000.0,0.0002402,2]
[385657941,1757952639036,-5471.702025,0.0002403,2]
[385657942,1757952639045,-18602.0832768,0.00024142,2]
[385657943,1757952639054,-321.41820312,0.00024166,2]
[385657944,1757952639063,-168.0,0.00024259,2]
[385657945,1757952639072,-188.5902635,0.00024411,2]
[385657946,1757952639081,-188.5902635,0.00024411,2]
[385657947,1757952639090,-188.5902635,0.00024411,2]
[385657948,1757952639099,-188.5902635,0.00024411,2]
[385657949,1757952639109,-188.5902635,0.00024411,2]
[385657950,1757952639118,-350.3680275,0.00024411,2]
[385657951,1757952639127,-361.0,0.00024434,2]
[385657952,1757952639136,-530.60236638,0.000245,2]
[385657953,1757952639145,-460.0,0.00024544,2]
[385657954,1757952639155,-810.85,0.00024547,10]
[385657955,1757952639163,-150.38800619,0.00024556,2]
[385657956,1757952639172,-6192.56294492,0.00024557,2]
[385657957,1757952639181,-594.01024956,0.00024561,2]
[385657958,1757952639190,-361.0,0.00024594,2]
[385657959,1757952639198,-973.03,0.00024633,10]
[385657960,1757952639207,-500.0,0.00024642,2]
[385657961,1757952639328,-249.53140303,0.00024642,2]
[385657962,1757952639338,-630.38824116,0.00024642,2]
[385657963,1757952639348,-1784.12,0.00024643,2]
[385657964,1757952639357,-186706.27372156,0.00024644,2]
[385657965,1757952639367,-1000.0,0.00024656,2]
[385657966,1757952639376,-1000.0,0.00024656,2]
[385657967,1757952639385,-1000.0,0.00024656,2]
[385657968,1757952639394,-1000.0,0.00024656,2]
[385657969,1757952639403,-1000.0,0.00024656,2]
[385657970,1757952639412,-1000.0,0.00024656,2]
[385657971,1757952639421,-1000.0,0.00024656,2]
[385657972,1757952639431,-1000.0,0.00024656,2]
[385657973,1757952639440,-8944.09816255,0.00024657,2]
[385657974,1757952639449,-480.0,0.00024657,3]
[385657975,1757952639460,-480.0,0.00024657,3]
[385657976,1757952639470,-480.0,0.00024657,3]
[385657977,1757952639480,-480.0,0.00024657,3]
[385657978,1757952639489,-480.0,0.00024657,3]
[385657979,1757952639498,-480.0,0.00024657,3]
[385657980,1757952639508,-480.0,0.00024657,3]
[385657981,1757952639518,-480.0,0.00024657,3]
[385657982,1757952639528,-480.0,0.00024657,3]
[385657983,1757952639538,-480.0,0.00024657,3]
[385657984,1757952639547,-480.0,0.00024657,3]
[385657985,1757952639556,-480.0,0.00024657,3]
[385657986,1757952639565,-480.0,0.00024657,3]
[385657987,1757952639574,-480.0,0.00024657,3]
[385657988,1757952639583,-480.0,0.00024657,3]
[385657989,1757952639592,-495.27357478,0.00024657,3]
[385657990,1757952639601,-480.0,0.00024657,3]
[385657991,1757952639611,-480.0,0.00024657,3]
[385657992,1757952639621,-480.0,0.00024657,3]
[385657993,1757952639631,-480.0,0.00024657,3]
[385657994,1757952639640,-237.65733667,0.00024657,3]
[385657995,1757952639649,-480.0,0.00024657,3]
[385657996,1757952639659,-480.0,0.00024657,3]
[385657997,1757952639668,-480.0,0.00024657,3]
[385657998,1757952639677,-480.0,0.00024657,3]
[385657999,1757952639686,-480.0,0.00024657,3]
[385658000,1757952639696,-480.0,0.00024657,3]
[385658001,1757952639705,-480.0,0.00024657,3]
[385658002,1757952639715,-206.70345947,0.00024657,3]
[385658003,1757952639724,-480.0,0.00024657,3]
[385658004,1757952639733,-480.0,0.00024657,3]
[385658005,1757952639743,-480.0,0.00024657,3]
[385658006,1757952639752,-480.0,0.00024657,3]
[385658007,1757952639761,-480.0,0.00024657,3]
[385658008,1757952639770,-480.0,0.00024657,3]
[385658009,1757952639780,-480.0,0.00024657,3]
[385658010,1757952639790,-480.0,0.00024657,3]
[385658011,1757952639799,-504.29,0.00024657,3]
[385658012,1757952639809,-492.84,0.00024657,3]
[385658013,1757952639818,-480.0,0.00024657,3]
[385658014,1757952639828,-480.0,0.00024657,3]
[385658015,1757952639837,-480.0,0.00024657,3]
[385658016,1757952639847,-480.0,0.00024657,3]
[385658017,1757952639856,-480.0,0.00024657,3]
[385658018,1757952639866,-480.0,0.00024657,3]
[385658019,1757952639875,-2363.02,0.00024657,3]
[385658020,1757952639884,-480.0,0.00024657,3]
[385658021,1757952639893,-480.0,0.00024657,3]
[385658022,1757952639902,-160.0,0.00024657,3]
[385658023,1757952639911,-480.0,0.00024657,3]
[385658024,1757952639920,-746.3,0.00024657,3]
[385658025,1757952639930,-4376.03,0.00024657,3]
[385658026,1757952639940,-480.0,0.00024657,3]
[385658027,1757952639949,-480.0,0.00024657,3]
[385658028,1757952639959,-480.0,0.00024657,3]
[385658029,1757952639968,-3038.76,0.00024657,3]
[385658030,1757952639977,-480.0,0.00024657,3]
[385658031,1757952639986,-480.0,0.00024657,3]
[385658032,1757952639995,-480.0,0.00024657,3]
[385658033,1757952640004,-480.0,0.00024657,3]
[385658034,1757952640013,-480.0,0.00024657,3]
[385658035,1757952640023,-480.0,0.00024657,3]
[385658036,1757952640032,-480.0,0.00024657,3]
[385658037,1757952640042,-480.0,0.00024657,3]
[385658038,1757952640052,-480.0,0.00024657,3]
[385658039,1757952640061,-480.0,0.00024657,3]
[385658040,1757952640070,-231.01628884,0.00024657,3]
[385658041,1757952640080,-177.27,0.00024657,3]
[385658042,1757952640090,-480.0,0.00024657,3]
[385658044,1757952640099,-480.0,0.00024657,3]
[385658046,1757952640109,-354.91434293,0.00024657,3]
[385658048,1757952640121,-847.45018724,0.00024657,3]
[385658050,1757952640131,-480.0,0.00024657,3]
[385658052,1757952640140,-480.0,0.00024657,3]
[385658054,1757952640149,-264.12007329,0.00024657,3]
[385658055,1757952640159,-480.0,0.00024657,3]
[385658057,1757952640168,-480.0,0.00024657,3]
[385658059,1757952640177,-629.66,0.00024657,3]
[385658061,1757952640186,-480.0,0.00024657,3]
[385658062,1757952640196,-480.0,0.00024657,3]
[385658064,1757952640210,-316.86616447,0.00024657,3]
[385658065,1757952640227,-480.0,0.00024657,3]
[385658066,1757952640238,-480.0,0.00024657,3]
[385658067,1757952640247,-480.0,0.00024657,3]
[385658068,1757952640257,-480.0,0.00024657,3]
[385658069,1757952640266,-480.0,0.00024657,3]
[385658070,1757952640275,-480.0,0.00024657,3]
[385658071,1757952640285,-480.0,0.00024657,3]
[385658072,1757952640294,-480.0,0.00024657,3]
[385658073,1757952640304,-480.0,0.00024657,3]
[385658075,1757952640322,-480.0,0.00024657,3]
[385658076,1757952640331,-480.0,0.00024657,3]
[385658077,1757952640340,-1283.5,0.00024657,3]
[385658078,1757952640349,-349.4880386,0.00024657,3]
[385658079,1757952640360,-480.0,0.00024657,3]
[385658080,1757952640370,-480.0,0.00024657,3]
[385658081,1757952640379,-151.0,0.00024658,2]
[385658082,1757952640389,-151.0,0.00024658,2]
[385658083,1757952640398,-151.0,0.00024658,2]
[385658084,1757952640407,-151.0,0.00024658,2]
[385658085,1757952640416,-151.0,0.00024658,2]
[385658086,1757952640425,-151.0,0.00024658,2]
[385658087,1757952640434,-151.0,0.00024658,2]
[385658088,1757952640443,-500.0,0.00024658,2]
[385658089,1757952640451,-500.0,0.00024658,2]
[385658090,1757952640464,-500.0,0.00024658,2]
[385658091,1757952640473,-157.0,0.00024658,2]
[385658092,1757952640482,-151.0,0.00024658,2]
[385658093,1757952640491,-151.0,0.00024658,2]
[385658094,1757952640500,-550.0,0.00024658,2]
[385658095,1757952640511,-500.0,0.00024658,2]
[385658096,1757952640521,-151.0,0.00024658,2]
[385658097,1757952640530,-500.0,0.00024658,2]
[385658098,1757952640539,-151.0,0.00024658,2]
[385658099,1757952640549,-500.0,0.00024658,2]
[385658100,1757952640558,-151.0,0.00024658,2]
[385658101,1757952640567,-500.0,0.00024658,2]
[385658102,1757952640577,-151.0,0.00024658,2]
[385658103,1757952640586,-500.0,0.00024673,2]
[385658104,1757952640595,-500.0,0.00024673,2]
[385658105,1757952640604,-500.0,0.00024673,2]
[385658106,1757952640616,-500.0,0.00024673,2]
[385658107,1757952640626,-500.0,0.00024673,2]
[385658108,1757952640635,-503.6027247,0.00024673,2]
[385658109,1757952640645,-151.0,0.00024673,7]
[385658111,1757952640654,-151.0,0.00024673,7]
[385658113,1757952640663,-271.067412,0.00024673,7]
[385658114,1757952640672,-151.0,0.00024673,7]
[385658115,1757952640681,-151.0,0.00024673,7]
[385658116,1757952640690,-151.0,0.00024673,7]
[385658117,1757952640699,-151.0,0.00024673,7]
[385658118,1757952640707,-151.0,0.00024673,7]
[385658119,1757952640716,-151.0,0.00024673,7]
[385658120,1757952640726,-151.0,0.00024673,7]
[385658121,1757952640735,-238.655052,0.00024673,7]
[385658122,1757952640744,-151.0,0.00024673,7]
[385658123,1757952640759,-151.0,0.00024673,7]
[385658124,1757952640771,-151.0,0.00024673,7]
[385658125,1757952640781,-151.0,0.00024673,7]
[385658126,1757952640790,-180.993895,0.00024673,7]
[385658127,1757952640799,-151.0,0.00024673,7]
[385658128,1757952640808,-984.0,0.000247,2]
[385658129,1757952640817,-3359.1862586,0.00024719,2]
[385658130,1757952640827,-168.0,0.00024737,2]
[385658131,1757952640836,-1000.0,0.00024743,2]
[385658132,1757952640845,-1000.0,0.00024743,2]
[385658133,1757952640854,-1000.0,0.00024743,2]
[385658134,1757952640864,-151.0,0.00024744,7]
[385658135,1757952640873,-151.0,0.00024744,7]
[385658136,1757952640883,-151.0,0.00024744,7]
[385658137,1757952640892,-151.0,0.00024744,7]
[385658138,1757952640902,-151.0,0.00024744,7]
[385658139,1757952640911,-169.644447,0.00024744,7]
[385658140,1757952640922,-151.0,0.00024744,7]
[385658141,1757952640932,-151.0,0.00024744,7]
[385658142,1757952640941,-151.0,0.00024744,7]
[385658143,1757952640950,-151.0,0.00024744,7]
[385658144,1757952640959,-151.0,0.00024744,7]
[385658145,1757952640969,-151.0,0.00024744,7]
[385658146,1757952640978,-151.0,0.00024744,7]
[385658147,1757952640988,-151.0,0.00024744,2]
[385658148,1757952640997,-151.0,0.00024744,2]
[385658149,1757952641006,-160.0141915,0.00024744,2]
[385658150,1757952641015,-151.968,0.00024757,8]
[385658151,1757952641025,-1000.0,0.0002476,2]
[385658152,1757952641034,-1000.0,0.0002476,2]
[385658153,1757952641043,-1000.0,0.0002476,2]
[385658154,1757952641053,-1000.0,0.0002476,2]
[385658155,1757952641062,-1000.0,0.0002476,2]
[385658156,1757952641071,-1000.0,0.0002476,2]
[385658157,1757952641080,-1000.0,0.0002476,2]
[385658158,1757952641089,-1000.0,0.0002476,2]
[385658159,1757952641098,-1000.0,0.0002476,2]
[385658160,1757952641108,-434.08710191,0.0002476,2]
[385658161,1757952641117,-151.0,0.00024761,7]
[385658162,1757952641127,-500.66080947,0.00024773,2]
[385658163,1757952641136,-160.0,0.000248,3]
[385658164,1757952641146,-205.14,0.000248,2]
[385658165,1757952641155,-4275.87326502,0.000248,2]
[385658166,1757952641164,-168.0,0.00024808,2]
[385658167,1757952641174,-712.64554417,0.00024821,2]
[385658168,1757952641183,-361.0,0.00024821,7]
[385658169,1757952641193,-1000.0,0.00024831,2]
[385658170,1757952641203,-14913.15626649,0.00024831,3]
[385658171,1757952641212,-500.0,0.00024873,2]
[385658172,1757952641222,-501.59144169,0.00024873,2]
[385658173,1757952641231,-502.02817721,0.00024873,2]
[385658174,1757952641241,-500.0,0.00024873,2]
[385658175,1757952641251,-500.0,0.00024873,2]
[385658176,1757952641260,-500.0,0.00024873,2]
[385658177,1757952641270,-500.0,0.00024873,2]
[385658178,1757952641279,-151.0,0.0002489,7]
[385658179,1757952641288,-151.0,0.0002489,7]
[385658180,1757952641298,-151.0,0.0002489,7]
[385658181,1757952641307,-154.250445,0.0002489,7]
[385658182,1757952641316,-151.0,0.0002489,7]
[385658183,1757952641325,-6413.80989753,0.0002489,2]
[385658184,1757952641335,-200.0,0.0002489,2]
[385658185,1757952641344,-200.0,0.0002489,3]
[385658186,1757952641353,-200.0,0.00024899,2]
[385658187,1757952641364,-22720.26,0.000249,7]
[385658188,1757952641373,-160.0,0.000249,7]
[385658189,1757952641382,-217.82061966,0.000249,7]
[385658190,1757952641391,-160.0,0.000249,7]
[385658191,1757952641401,-233.24851325,0.000249,7]
[385658192,1757952641410,-160.0,0.000249,7]
[385658193,1757952641419,-152.996556,0.000249,7]
[385658194,1757952641428,-151.0,0.000249,7]
[385658195,1757952641438,-151.0,0.000249,7]
[385658196,1757952641447,-156.401111,0.000249,7]
[385658197,1757952641457,-151.0,0.000249,7]
[385658198,1757952641471,-151.0,0.000249,7]
[385658199,1757952641480,-151.0,0.000249,7]
[385658200,1757952641489,-151.0,0.000249,7]
[385658201,1757952641498,-151.0,0.000249,7]
[385658202,1757952641509,-151.0,0.000249,7]
[385658203,1757952641519,-151.0,0.000249,7]
[385658204,1757952641528,-151.0,0.000249,7]
[385658205,1757952641540,-159.39827,0.000249,7]
[385658206,1757952641549,-151.0,0.000249,7]
[385658207,1757952641559,-159.39827,0.000249,7]
[385658208,1757952641568,-159.39827,0.000249,7]
[385658209,1757952641577,-159.39827,0.000249,7]
[385658210,1757952641586,-151.0,0.000249,7]
[385658211,1757952641596,-151.0,0.000249,7]
[385658212,1757952641605,-151.0,0.000249,7]
[385658213,1757952641616,-151.0,0.000249,7]
[385658214,1757952641625,-151.0,0.000249,7]
[385658215,1757952641635,-151.0,0.000249,7]
[385658216,1757952641643,-151.0,0.000249,7]
[385658217,1757952641653,-151.0,0.000249,7]
[385658218,1757952641667,-151.0,0.000249,7]
[385658219,1757952641677,-151.0,0.000249,7]
[385658220,1757952641686,-151.0,0.000249,7]
[385658221,1757952641695,-152.53893,0.000249,7]
[385658222,1757952641704,-151.0,0.000249,7]
[385658223,1757952641714,-151.0,0.000249,7]
[385658224,1757952641723,-164.636144,0.000249,7]
[385658225,1757952641733,-283.143551,0.000249,7]
[385658226,1757952641743,-151.0,0.000249,7]
[385658227,1757952641752,-151.0,0.000249,7]
[385658228,1757952641761,-151.0,0.000249,7]
[385658229,1757952641771,-160.0,0.000249,7]
[385658230,1757952641780,-151.0,0.000249,7]
[385658231,1757952641789,-151.0,0.000249,7]
[385658232,1757952641799,-151.0,0.000249,7]
[385658233,1757952641810,-151.0,0.000249,7]
[385658234,1757952641819,-151.0,0.000249,7]
[385658235,1757952641828,-151.0,0.000249,7]
[385658236,1757952641837,-151.0,0.000249,7]
[385658237,1757952641847,-847.45018724,0.000249,7]
[385658238,1757952641856,-151.0,0.000249,7]
[385658239,1757952641867,-151.0,0.000249,7]
[385658240,1757952641876,-151.0,0.000249,7]
[385658241,1757952641885,-712.64554417,0.00024921,2]
[385658242,1757952641895,-160.0,0.00024931,3]
[385658243,1757952641904,-480.0,0.00024931,3]
[385658244,1757952642018,-480.0,0.00024931,3]
[385658245,1757952642028,-166.228071,0.00024931,7]
[385658246,1757952642038,-480.0,0.00024931,3]
[385658247,1757952642047,-480.0,0.00024931,3]
[385658248,1757952642056,-151.0,0.00024931,7]
[385658249,1757952642065,-480.0,0.00024931,3]
[385658250,1757952642075,-151.0,0.00024931,7]
[385658251,1757952642084,-480.0,0.00024931,3]
[385658252,1757952642093,-480.0,0.00024931,3]
[385658253,1757952642103,-480.0,0.00024931,3]
[385658254,1757952642114,-480.0,0.00024931,3]
[385658255,1757952642125,-480.0,0.00024931,3]
[385658256,1757952642134,-480.0,0.00024931,3]
[385658257,1757952642143,-480.0,0.00024931,3]
[385658258,1757952642153,-480.0,0.00024931,3]
[385658259,1757952642162,-480.0,0.00024931,3]
[385658260,1757952642171,-480.0,0.00024931,3]
[385658261,1757952642180,-480.0,0.00024931,3]
[385658262,1757952642190,-480.0,0.00024931,3]
[385658263,1757952642200,-480.0,0.00024931,3]
[385658264,1757952642209,-480.0,0.00024931,3]
[385658265,1757952642219,-480.0,0.00024931,3]
[385658266,1757952642228,-480.0,0.00024931,3]
[385658267,1757952642238,-480.0,0.00024931,3]
[385658268,1757952642248,-480.0,0.00024931,3]
[385658269,1757952642257,-480.0,0.00024931,3]
[385658270,1757952642266,-480.0,0.00024931,3]
[385658271,1757952642276,-480.0,0.00024931,3]
[385658272,1757952642285,-480.0,0.00024931,3]
[385658273,1757952642295,-480.0,0.00024931,3]
[385658274,1757952642304,-480.0,0.00024931,3]
[385658275,1757952642314,-480.0,0.00024931,3]
[385658276,1757952642323,-480.0,0.00024931,3]
[385658277,1757952642332,-480.0,0.00024931,3]
[385658278,1757952642341,-480.0,0.00024931,3]
[385658279,1757952642351,-504.29,0.00024931,3]
[385658280,1757952642360,-492.84,0.00024931,3]
[385658281,1757952642372,-480.0,0.00024931,3]
[385658282,1757952642381,-480.0,0.00024931,3]
[385658283,1757952642391,-480.0,0.00024931,3]
[385658284,1757952642400,-480.0,0.00024931,3]
[385658285,1757952642410,-480.0,0.00024931,3]
[385658286,1757952642419,-480.0,0.00024931,3]
[385658287,1757952642428,-2363.02,0.00024931,3]
[385658288,1757952642438,-480.0,0.00024931,3]
[385658289,1757952642447,-480.0,0.00024931,3]
[385658290,1757952642457,-480.0,0.00024931,3]
[385658291,1757952642470,-746.3,0.00024931,3]
[385658292,1757952642479,-4376.03,0.00024931,3]
[385658293,1757952642488,-480.0,0.00024931,3]
[385658294,1757952642498,-480.0,0.00024931,3]
[385658295,1757952642507,-480.0,0.00024931,3]
[385658296,1757952642516,-3038.76,0.00024931,3]
[385658297,1757952642525,-480.0,0.00024931,3]
[385658298,1757952642535,-480.0,0.00024931,3]
[385658299,1757952642544,-480.0,0.00024931,3]
[385658300,1757952642554,-480.0,0.00024931,3]
[385658301,1757952642563,-480.0,0.00024931,3]
[385658302,1757952642572,-480.0,0.00024931,3]
[385658303,1757952642582,-480.0,0.00024931,3]
[385658304,1757952642591,-480.0,0.00024931,3]
[385658305,1757952642600,-480.0,0.00024931,3]
[385658306,1757952642610,-480.0,0.00024931,3]
[385658307,1757952642621,-480.0,0.00024931,3]
[385658308,1757952642631,-480.0,0.00024931,3]
[385658309,1757952642641,-480.0,0.00024931,3]
[385658310,1757952642650,-480.00509754,0.00024931,3]
[385658311,1757952642659,-480.0,0.00024931,3]
[385658312,1757952642668,-480.0,0.00024931,3]
[385658313,1757952642677,-629.66,0.00024931,3]
[385658314,1757952642686,-480.0,0.00024931,3]
[385658315,1757952642695,-480.0,0.00024931,3]
[385658316,1757952642704,-480.0,0.00024931,3]
[385658317,1757952642715,-480.0,0.00024931,3]
[385658318,1757952642726,-480.0,0.00024931,3]
[385658319,1757952642740,-480.0,0.00024931,3]
[385658320,1757952642751,-480.0,0.00024931,3]
[385658321,1757952642760,-480.0,0.00024931,3]
[385658322,1757952642770,-480.0,0.00024931,3]
[385658323,1757952642779,-480.0,0.00024931,3]
[385658324,1757952642789,-480.0,0.00024931,3]
[385658325,1757952642798,-480.0,0.00024931,3]
[385658326,1757952642807,-480.0,0.00024931,3]
[385658327,1757952642817,-1283.5,0.00024931,3]
[385658328,1757952642826,-480.0,0.00024931,3]
[385658329,1757952642835,-480.0,0.00024931,3]
[385658330,1757952642844,-269.83488491,0.00024932,2]
[385658331,1757952642854,-151.0,0.00024932,2]
[385658332,1757952642867,-151.0,0.00024932,2]
[385658333,1757952642876,-151.0,0.00024932,2]
[385658334,1757952642885,-500.0,0.00024932,2]
[385658335,1757952642895,-500.0,0.00024932,2]
[385658336,1757952642904,-151.0,0.00024932,2]
[385658337,1757952642914,-151.0,0.00024932,2]
[385658338,1757952642923,-550.0,0.00024932,2]
[385658339,1757952642932,-500.0,0.00024932,2]
[385658340,1757952642942,-151.0,0.00024932,2]
[385658341,1757952642952,-500.0,0.00024932,2]
[385658342,1757952642961,-500.0,0.00024932,2]
[385658343,1757952642971,-151.0,0.00024932,2]
[385658344,1757952642980,-500.0,0.00024932,2]
[385658345,1757952642991,-281.58,0.00024932,2]
[385658346,1757952643000,-501.8848016,0.00024973,2]
[385658347,1757952643011,-500.0,0.00024973,2]
[385658348,1757952643020,-500.0,0.00024973,2]
[385658349,1757952643029,-500.0,0.00024973,2]
[385658350,1757952643040,-500.0,0.00024973,2]
[385658351,1757952643049,-500.0,0.00024973,2]
[385658352,1757952643058,-500.0,0.00024973,2]
[385658353,1757952643068,-501.13942857,0.00024973,2]
[385658354,1757952643076,-500.0,0.00024973,2]
[385658356,1757952643085,-500.0,0.00024973,2]
[385658357,1757952643095,-712.64554417,0.0002499,2]
[385658358,1757952643104,-417.15472785,0.00025,10]
[385658359,1757952643110,-6115.6977408,0.00025,5]
[385658360,1757952643121,-2993.66281309,0.00025,2]
[385658361,1757952643130,-201.46997303,0.00025,2]
[385658363,1757952643139,-160.384065,0.00025,7]
[385658365,1757952643148,-1000.0,0.00025,2]
[385658367,1757952643158,-1000.0,0.00025,2]
[385658369,1757952643167,-1000.0,0.00025,2]
[385658371,1757952643176,-1000.0,0.00025,2]